Cogmind - Beta 10.1 @@@ ROGUE MODE // 2020.10.17 @ 23:57:17 Player: MistressMomoko Result: Destroyed by G-47 Trooper with Particle Gun Performance ------------- Evolutions (2) 1000 Regions Visited (4) 800 Robots Destroyed (39) 195 Value Destroyed (879) 879 Prototype IDs (5) 100 Alien Tech Used (0) 0 Bonus (0) 0 TOTAL SCORE: 2974 Bonus ------- None Cogmind --------- Core Integrity 0/550 Matter 161/300 Energy 79/100 System Corruption 0% Temperature Cool (20) Movement Walking (120) Location -8/Materials Parts ------- > --- POWER (2) -------- (None) > --- PROPULSION (2) --- Aluminum Leg Aluminum Leg > --- UTILITY (5) ------ Improved Targeting Computer > --- WEAPON (2) ------- (None) > --- INVENTORY (4) ---- Light Treads Aluminum Leg Peak State ------------ > --- POWER ------------ Light Ion Engine Improved Ion Engine > --- PROPULSION ------- Light Treads Armored Treads > --- UTILITY ---------- Medium Storage Unit Large Storage Unit Improved Targeting Computer Particle Charger > --- WEAPON ----------- Grenade Launcher Rocket Launcher > --- INVENTORY -------- Light Treads Aluminum Leg Aluminum Leg Aluminum Leg Aluminum Leg Light Armor Plating Improved EM Shotgun Small Laser Light Assault Rifle Heavy Assault Rifle Datajack Plasma Cutter [Rating: 18] Favorites ----------- Power Light Ion Engine Engine Light Ion Engine Propulsion Light Treads Treads Light Treads Leg Aluminum Leg Utility Small Storage Unit Device Particle Charger Storage Small Storage Unit Processor Improved Targeting Computer Protection Light Armor Plating Weapon Small Laser Energy Gun Small Laser Ballistic Gun Heavy Assault Rifle Launcher Grenade Launcher Special Weapon Plasma Cutter Build | -11 -10 -10 -9 -8 ------- Run | Scr Mat Min Mat Mat Slots Evolved 4 | . . . 2 2 Power 1 | . . . . 1 Propulsion . | . . . . . Utility 3 | . . . 2 1 Weapon . | . . . . . Parts Attached 30 | 7 1 2 9 11 Power 4 | 1 . . 2 1 Engine 4 | 1 . . 2 1 Core . | . . . . . Reactor . | . . . . . Propulsion 9 | 2 . . 3 4 Treads 6 | 2 . . 3 1 Leg 3 | . . . . 3 Wheel . | . . . . . Hover . | . . . . . Flight . | . . . . . Utility 8 | 2 . 1 4 1 Device 1 | . . . . 1 Storage 4 | 2 . 1 1 . Processor 1 | . . . 1 . Hackware . | . . . . . Protection 2 | . . . 2 . Artifact . | . . . . . Weapon 9 | 2 1 1 . 5 Energy Gun 4 | 2 . . . 2 Energy Cannon . | . . . . . Ballistic Gun 2 | . . . . 2 Ballistic Cannon . | . . . . . Launcher 2 | . 1 1 . . Special Weapon 1 | . . . . 1 Impact Weapon . | . . . . . Slashing Weapon . | . . . . . Piercing Weapon . | . . . . . Special Melee Weapon . | . . . . . Unidentified Prototypes 1 | . . . . 1 Parts Lost 16 | . 1 . . 15 Power 3 | . . . . 3 Propulsion 3 | . . . . 3 Utility 1 | . . . . 1 Weapon 9 | . 1 . . 8 Highest Loss Streak 15 | . 1 . . 15 Average Slot Usage (%) 92 | . 100 100 92 79 Engine 12 | . 14 14 11 16 Treads 21 | . 28 28 20 15 Storage 22 | . 28 28 22 18 Processor 6 | . . . 9 9 Protection 3 | . . . 7 . Energy Gun 4 | . 22 6 . . Launcher 16 | . 5 21 22 10 Naked Turns . | . . . . . Heaviest Build 44 | 14 15 22 41 44 Greatest Support 40 | 40 40 40 40 40 Greatest Overweight (x) 12 | . . . 12 10 Average Overweight (x) . | . . . . . Largest Inventory Capacity 14 | 8 8 10 14 14 Average Capacity 9 | 7 8 9 11 13 Most Carried 13 | 7 7 7 13 13 Average Carried 7 | 6 6 5 9 8 Final Capacity 14 | 8 8 10 14 4 Final Carried 13 | 6 6 7 13 2 Class Distribution -------------------- 100% | Mutant Dominant Class ---------------- Mutant | -10/Materials Mutant | -10/Mines Mutant | -9/Materials Mutant | -8/Materials Resources | -11 -10 -10 -9 -8 ----------- Run | Scr Mat Min Mat Mat Matter Collected 632 | 260 . 40 168 164 Remotely . | . . . . . Salvage Created 1092 | 334 191 59 223 285 Parts 68 | 29 16 1 7 15 Haulers Intercepted 1 | . 1 . . . Recyclers Shooed . | . . . . . Parts Field Recycled . | . . . . . Retrieved Matter . | . . . . . Parts Self-Destructed . | . . . . . Prevented . | . . . . . Kills | -11 -10 -10 -9 -8 ------- Run | Scr Mat Min Mat Mat Combat Hostiles Destroyed 20 | . 3 . 11 6 Guns 4 | . 2 . . 2 Cannons 1 | . . . . 1 AOE 15 | . 1 . 11 3 Classes Destroyed 8 | 3 3 . 2 . Worker 4 | 4 . . . . Tunneler 10 | 9 1 . . . Hauler 1 | . 1 . . . Recycler 3 | 1 . 1 . 1 Operator 1 | . 1 . . . Swarmer 4 | . . . 4 . Grunt 12 | . 3 . 4 5 Sentry 4 | . . . 3 1 Best Kill Streak 5 | 4 5 1 4 4 Combat Bots Only 4 | . 3 . 4 3 Max Kills in Single Turn 3 | 2 2 1 3 1 Gunslinging . | . . . . . Exploded 3 | . 1 . 3 1 Melee . | . . . . . Uniques/NPCs Destroyed . | . . . . . Combat | -11 -10 -10 -9 -8 -------- Run | Scr Mat Min Mat Mat Damage Taken 2392 | 15 168 . 185 2024 Core 604 | 15 21 . 17 551 Absorbed by Shields . | . . . . . Core Remaining (%) 91 | 94 . 85 95 . Volleys Fired 71 | 24 10 . 12 25 Largest 2 | 2 2 . 2 2 Hottest 80 | 80 80 . 63 65 Shots Fired 119 | 48 20 . 23 28 Gun 82 | 48 19 . . 15 Cannon . | . . . . . Launcher 32 | . 1 . 23 8 Special 5 | . . . . 5 Kinetic 9 | . . . . 9 Thermal 45 | 24 10 . . 11 Explosive 32 | . 1 . 23 8 Electromagnetic 33 | 24 9 . . . Robot Hit Streak 14 | 11 14 . 10 13 Robot Miss Streak 3 | 3 1 . 2 2 Penetration Max . | . . . . . Secondary Targets . | . . . . . Shots Hit Robots 79 | 30 15 . 14 20 Core Hits 63 | 14 9 . 19 21 Critical Hits . | . . . . . Critical Kills . | . . . . . Critical Parts Destroyed . | . . . . . Melee Attacks . | . . . . . Impact . | . . . . . Slashing . | . . . . . Piercing . | . . . . . Sneak Attacks . | . . . . . Combat Hostiles . | . . . . . Follow-up Attacks . | . . . . . Damage Inflicted 2429 | 512 304 1 647 965 Guns 727 | 366 218 . . 143 Cannons . | . . . . . Explosions 1649 | 146 84 . 647 772 Melee . | . . . . . Ramming 9 | . 2 1 . 6 Kinetic 77 | . . . . 77 Thermal 454 | 257 87 . . 110 Explosive 1503 | . 84 . 647 772 Electromagnetic 386 | 255 131 . . . Impact . | . . . . . Slashing . | . . . . . Piercing . | . . . . . Highest Corruption 1 | . . . 1 . Average Corruption 1 | . . . 1 . Corruption Purged . | . . . . . Effects 1 | . . . 1 . Message Errors 1 | . . . 1 . Overload Shots . | . . . . . Overflow Damage 38 | 10 . . . 28 Projectiles . | . . . . . Explosions 38 | 10 . . . 28 Melee . | . . . . . Knockbacks . | . . . . . Impact . | . . . . . Kinetic . | . . . . . Secondary . | . . . . . Self-Inflicted Damage 115 | 15 . . 89 11 Shots 10 | 1 . . 8 1 Rammed 6 | . 1 . 1 4 Targets Rammed 9 | . 2 1 1 5 Kicked 1 | . . . . 1 Crushed 2 | . 1 1 . . Highest Temperature 201 | 15 201 . 18 92 Average Temperature 29 | 5 85 . 6 32 Received Heat Transfer 1248 | . 93 . 48 1107 Siege Activations . | . . . . . Robots Corrupted . | . . . . . Combat Hostiles . | . . . . . Parts Fried 1 | 1 . . . . Impact Corruptions . | . . . . . Robots Melted . | . . . . . Combat Hostiles . | . . . . . Parts Melted . | . . . . . Heat Transferred 909 | 400 200 . . 309 Parts Sabotaged . | . . . . . Parts Stolen . | . . . . . Parts Stripped . | . . . . . Power Chain Reactions 3 | 3 . . . . Missiles Intercepted . | . . . . . Alert | -11 -10 -10 -9 -8 ------- Run | Scr Mat Min Mat Mat Peak Influence 366 | 65 100 44 366 211 Initial 92 | . . 39 16 92 Average 54 | 6 43 39 150 146 Maximum Alert Level 1 | . . . 1 1 Low Security (%) 95 | 100 100 100 83 88 Level 1 4 | . . . 16 11 Level 2 . | . . . . . Level 3 . | . . . . . Level 4 . | . . . . . Level 5 . | . . . . . High Security . | . . . . . Max Security . | . . . . . Squads Dispatched 7 | . 2 . 2 3 Investigation 6 | . 2 . 2 2 Extermination . | . . . . . Reinforcement 1 | . . . . 1 Assault . | . . . . . Garrison . | . . . . . Intercept . | . . . . . Construction Impeded . | . . . . . Haulers Reinforced . | . . . . . Stealth | -11 -10 -10 -9 -8 --------- Run | Scr Mat Min Mat Mat Distress Signals 2 | . 1 . 1 . Communications Jammed . | . . . . . Distress Signals . | . . . . . Times Spotted 33 | . 4 . 13 16 Peak Tracking Total 10 | . 2 . 5 10 Tactical Retreats 1 | . . . 1 . Traps | -11 -10 -10 -9 -8 ------- Run | Scr Mat Min Mat Mat Traps Triggered 4 | . 1 . 3 . Indirectly . | . . . . . Trap Hack Attempts . | . . . . . Triggered . | . . . . . Disarmed . | . . . . . Reprogrammed . | . . . . . Reused . | . . . . . Traps Extracted . | . . . . . Installed . | . . . . . Triggered . | . . . . . Machines | -11 -10 -10 -9 -8 ---------- Run | Scr Mat Min Mat Mat Machines Disabled 6 | . . . 6 . Max in Single Turn 3 | . . . 3 . Machines Sabotaged . | . . . . . Garrisons Compromised . | . . . . . Overloaded Fab Kills . | . . . . . Fab Network Shutdowns . | . . . . . Hacking | -11 -10 -10 -9 -8 --------- Run | Scr Mat Min Mat Mat Machines Accessed 12 | . 2 . 6 4 Terminals 8 | . 2 . 4 2 Fabricators . | . . . . . Repair Stations 2 | . . . 1 1 Recycling Units 2 | . . . 1 1 Scanalyzers . | . . . . . Garrison Access . | . . . . . Total Hacks 38 | . 10 . 15 13 Successful 23 | . 6 . 7 10 Failed 15 | . 4 . 8 3 Catastrophic 5 | . 2 . 3 . Database Lockouts . | . . . . . Manual 1 | . . . . 1 Terminals 28 | . 10 . 11 7 Fabricators . | . . . . . Repair Stations 5 | . . . 2 3 Recycling Units 5 | . . . 2 3 Scanalyzers . | . . . . . Garrison Access . | . . . . . Terminal Hacks 16 | . 6 . 4 6 Record 8 | . 4 . 2 2 Robot Analysis 1 | . . . . 1 Prototype ID Bank 2 | . . . 1 1 Alert Level 1 | . 1 . . . Locate Traps 1 | . . . 1 . Transport Status 1 | . . . . 1 Hauler Manifests 1 | . . . . 1 Zone Layout 1 | . 1 . . . Fabricator Hacks . | . . . . . Repair Station Hacks 3 | . . . 2 1 Scan Component 1 | . . . 1 . Repair 1 | . . . 1 . Refit 1 | . . . . 1 Recycling Unit Hacks 4 | . . . 1 3 Recycle Component 2 | . . . . 2 Report Inventory 1 | . . . . 1 Retrieve Matter 1 | . . . 1 . Scanalyzer . | . . . . . Garrison Access Hacks . | . . . . . Unauthorized Hacks . | . . . . . Terminals . | . . . . . Fabricators . | . . . . . Repair Stations . | . . . . . Recycling Units . | . . . . . Scanalyzers . | . . . . . Garrison Access . | . . . . . Data Cores Recovered 1 | . 1 . . . Used . | . . . . . Hacking Detections 10 | . 2 . 4 4 Full Trace Events 6 | . 1 . 3 2 Feedback Events 1 | . . . 1 . Corruption 1 | . . . 1 . Feedback Blocked . | . . . . . Robot Schematics Acquired . | . . . . . Robots Built . | . . . . . Matter . | . . . . . Time . | . . . . . Total Robot Build Rating . | . . . . . Part Schematics Acquired . | . . . . . Parts Built . | . . . . . Matter . | . . . . . Time . | . . . . . Total Part Build Rating . | . . . . . Parts Repaired 1 | . . . 1 . Time 26 | . . . 26 . Parts Recycled 2 | . . . . 2 Recycled Matter . | . . . . . Retrieved Matter . | . . . . . Retrieved Components . | . . . . . Parts Scanalyzed . | . . . . . Part Schematics Acquired . | . . . . . Parts Damaged . | . . . . . Bothacking | -11 -10 -10 -9 -8 ------------ Run | Scr Mat Min Mat Mat Used RIF Installer . | . . . . . Robots Hacked . | . . . . . Non-combat . | . . . . . Combat . | . . . . . Robot Hacks Applied . | . . . . . Relay Couplers Released . | . . . . . Robots Rewired . | . . . . . Allies Hacked . | . . . . . Hacks Repelled . | . . . . . Allies | -11 -10 -10 -9 -8 -------- Run | Scr Mat Min Mat Mat Total Allies . | . . . . . Largest Group . | . . . . . Highest-Rated Group . | . . . . . Highest-Rated Ally . | . . . . . Total Orders . | . . . . . Ally Attacks . | . . . . . Total Damage . | . . . . . Kills . | . . . . . Allies Corrupted . | . . . . . Allies Melted . | . . . . . Intel | -11 -10 -10 -9 -8 ------- Run | Scr Mat Min Mat Mat Robot Analysis Total 1 | . . . . 1 Derelict Logs Recovered 1 | . . 1 . . Drone Launches . | . . . . . Drone Recoveries . | . . . . . Exploration | -11 -10 -10 -9 -8 ------------- Run | Scr Mat Min Mat Mat Turns Passed 3645 | 2083 258 205 792 307 Spaces Moved 979 | 181 140 123 418 117 Core 17 | 9 . . 7 1 Treads 955 | 172 140 123 411 109 Legs 7 | . . . . 7 Wheels . | . . . . . Hover . | . . . . . Flight . | . . . . . Fastest Speed 50 | 50 160 160 160 120 Average Speed 165 | 154 160 160 168 181 Slowest Speed 650 | 160 160 160 650 550 Overloaded Moves . | . . . . . Propulsion Burnouts . | . . . . . Robots Hopped . | . . . . . Cave-ins Triggered . | . . . . . Exploration Rate (%) 22 | 11 31 18 38 13 Regions Visited 4 Branch Regions 1 Pre-discovered Areas . | . . . . . Known Exits Taken . | . . . . . Unknown Exits Taken 4 | 1 1 1 1 . Scrap Searched 2 | . . 2 . . Spaces Dug . | . . . . . Terrain Destroyed 125 | 11 6 . 72 36 Melee . | . . . . . Projectile . | . . . . . AOE 125 | 11 6 . 72 36 Terrain Rammed . | . . . . . Walls Destroyed . | . . . . . Machines Disabled . | . . . . . Actions | -11 -10 -10 -9 -8 --------- Run | Scr Mat Min Mat Mat Total 2874 | 1936 153 132 481 172 Wait 1746 | 1712 . 1 26 7 Move 975 | 180 139 122 417 117 Hop . | . . . . . Pick Up 33 | 13 1 3 13 3 Fast Attach 1 | . . . 1 . Attach 26 | 7 1 1 6 11 Detach 1 | . . 1 . . Swap 4 | . . 1 2 1 Drop 8 | . . 2 3 3 Fire 71 | 24 10 . 12 25 Melee . | . . . . . Ram 1 | . . . . 1 Kick 3 | . . . . 3 Crush 5 | . 2 1 1 1 Escape Stasis . | . . . . . Rewire . | . . . . . Trap . | . . . . . Miscellaneous . | . . . . . Route ------- -11/Scrapyard -10/Materials -10/Mines -9/Materials (discovered 2 exits: *Mat / Min) -8/Materials History --------- Turn | Location | Event 2 | -11/Scrapyard | Met Revision 17 5 | -11/Scrapyard | Discovered new exit (range 15) 2084 | -11/Scrapyard | Entered Materials 2085 | -10/Materials | Build established: Mutant 2299 | -10/Materials | Discovered new exit (range 12) 2342 | -10/Materials | Entered Mines 2373 | -10/Mines | Learned 4 Materials zone layouts 2426 | -10/Mines | Discovered new exit (range 5) 2433 | -10/Mines | Received a Rocket Launcher from a helpful Derelict 2547 | -10/Mines | Entered Materials 2547 | -9/Materials | Evolved 2 slots: Utility x2 2548 | -9/Materials | Identified exit to Mines 2606 | -9/Materials | Repaired Lgt. Armor Plating 3223 | -9/Materials | Discovered new exit (range 11) 3339 | -9/Materials | Entered another Materials area 3339 | -8/Materials | Evolved 2 slots: Power x1, Utility x1 3626 | -8/Materials | Core integrity fell below 50% 3633 | -8/Materials | Core integrity fell below 20% 3646 | -8/Materials | Destroyed by G-47 Trooper with Particle Gun Last Messages --------------- 03606_ Sml. Laser destroyed. 03608_ R-06 Scavenger collects Lgt. Nuclear Core. 03613_ Acquired Particle Gun. 03615_ Y-45 Defender destroyed. 03621_ Slammed into G-47 Trooper. 03623_ Arm. Treads destroyed. 03623_ Slammed into G-47 Trooper. 03624_ Acquired 48 matter. 03624_ Particle Gun destroyed. 03625_ Kicked G-47 Trooper out of the way. 03627_ Aluminum Leg destroyed. 03627_ Slammed into G-47 Trooper. 03632_ R-06 Scavenger collects Aluminum Leg. 03632_ R-06 Scavenger collects Heat Sink. 03635_ R-06 Scavenger destroyed. 03639_ Imp. Ion Engine destroyed. 03642_ K-01 Serf collects debris. 03643_ Dropped Lrg. Storage Unit. 03644_ R-06 Scavenger destroyed. 03644_ Dropped Med. Storage Unit. Map ----- +----------------------------------------------------+ | | | ?????????????????????????????????????????????????? | | ?????????????????????????????????????????????????? | | ?????????????????????????????????????????????????? | | ?????????????????????????????????????????????????? | | ?????????????????????????????????????????????????? | | ?????????????????????????????????????????????????? | | ?????????????????????????????????????????????????? | | ?????????????????????????????????????????????????? | | ?????????????????????????????????????????????????? | | ?????????????????????????????????????????????????? | | ?????????????????????????????????????????????????? | | ???????????????????????????????????????##########? | | ???????????????????????????????????????# #? | | ???????????????????????????????????????# #? | | ????????????????????????????????######## ## | | ????????????????????????????????# # # | | ????????????????????????????????# """ + ! # | | ????????????????????????????????# "R # ! # | | ????????????????????????????????# """ # # | | ????????????????????????????????# # #[ | | ???????????????#####????????????# # | | ???????????????# ############## ## # ## | | ???????????????# gg k | | ???????????????# =g=g gk | | ???????????????# @!! =g%g g g | | ???????????????# ###+######+###### # # | | ????????????????????????????# [ = # #### | | ????????????????????????????# !=T # " ##??#### | | ????????????????????????????# = # T #??????? | | ????????????????????????????# = # " #??????? | | ????????????????????????????# # #??????? | | ????????????????????????????# # = #??????? | | ????????????????????????????#############+#??????? | | ????????????????????????????????????????? #??????? | | ????????????????????????????????????????? ???????? | | ????????????????????????????????????????? ???????? | | ?????????????????????????????????????????????????? | | ?????????????????????????????????????????????????? | | ?????????????????????????????????????????????????? | | ?????????????????????????????????????????????????? | | ?????????????????????????????????????????????????? | | ?????????????????????????????????????????????????? | | ?????????????????????????????????????????????????? | | ?????????????????????????????????????????????????? | | ?????????????????????????????????????????????????? | | ?????????????????????????????????????????????????? | | ?????????????????????????????????????????????????? | | ?????????????????????????????????????????????????? | | ?????????????????????????????????????????????????? | +----------------------------------------------------+ Best States ------------- Heat Dissipation 31 Energy Generation 17 Energy Capacity 290 Matter Stores 300 Matter Capacity 300 Sight Range 16 Terrain Scan Density 10 Armor Coverage 150 Evasion (%) 40 Targeting Accuracy 6 Recoil Reduction 2 Particle Charging 15 Item Schematics ----------------- None Robot Schematics ------------------ None Fabricated ------------ Nothing Alien Tech Used ----------------- None Achievements -------------- None Challenges ------------ None Game ------ Seed ShockLinkedChronowheel Manual? 0 Play Time 00:22:04 Cumulative 10.9 hours Start 2020.10.17 @ 23:35:40 End 2020.10.17 @ 23:57:17 Sessions 1 Manual Loads 0 Difficulty Rogue Special Mode None Game No. 39 Rogue 39 Adventurer 0 Explorer 0 Win Type - Total 0 Types 0/0/0/0/0/0/0/0/0 Lore% 12 Gallery% 21 Achievement% 17 Wizard Run 0 Options --------- ASCII 1 Keyboard 0 Movement Arrows Keybinds 0 Fullscreen 1 Font 18/SmallcapsGlow Map View 76x50 Tactical HUD 1 Map Filters NONE Filters NONE Steam 1 RUN: 485d3994-6a44-4c6f-9055-5770c648f271